[Event "71st RUS-ch Higher League 2018"]
[Site "Yaroslavl"]
[Date "2018.06.28"]
[Round "3"]
[White "Girya, Olga"]
[Black "Gogolev, Artem"]
[Result "1-0"]
[ECO "E15"]
[WhiteElo "2457"]
[BlackElo "2407"]
[Annotator "ChessBase"]
[PlyCount "105"]
[EventDate "2018.06.26"]
[EventType "swiss"]
[EventCountry "RUS"]
[SourceTitle "playchess.com"]
[Source "ChessBase"]
[SourceQuality "1"]
[TimeControl "40/5400+30:1800+30"]

1. d4 {[%emt 0:00:00]} Nf6 {[%emt 0:03:21]} 2. c4 {[%emt 0:00:00]} e6 {[%emt 0:00:11]} 3. Nf3 {[%emt 0:00:00]} b6 {[%emt 0:00:06]} 4. g3 {[%emt 0:01:30]} Bb7 {[%emt 0:01:08]} 5. Bg2 {[%emt 0:00:06]} d5 {[%emt 0:01:24]} 6. cxd5 {[%emt 0:02:33]} exd5 {[%emt 0:00:35]} 7. O-O {[%emt 0:00:42]} Bd6 {[%emt 0:02:24]} 8. Nc3 {[%emt 0:00:44]} O-O {[%emt 0:01:35]} 9. Nb5 {[%emt 0:06:10]} Be7 {[%emt 0:01:37]} 10. Bf4 {[%emt 0:01:29]} Na6 {[%emt 0:00:18]} 11. Rc1 {[%emt 0:00:53]} c6 {[%emt 0:09:31]} 12. Nc3 {[%emt 0:00:13]} Nc7 {[%emt 0:02:28]} 13. Bxc7 {[%emt 0:17:12]} Qxc7 {[%emt 0:00:12]} 14. Ne5 {[%emt 0:00:36]} c5 {[%emt 0:12:42]} 15. e3 {[%emt 0:02:11]} Rad8 {[%emt 0:06:51]} 16. Qc2 {[%emt 0:08:59]} a6 {[%emt 0:04:43]} 17. a4 {[%emt 0:01:40]} Rfe8 {[%emt 0:08:59]} 18. f4 {[%emt 0:08:45]} Bf8 {[%emt 0:03:48]} 19. Rfe1 {[%emt 0:04:28]} Qb8 {[%emt 0:09:56]} 20. Qb3 {[%emt 0:07:15]} Ba8 {[%emt 0:01:15]} 21. g4 {[%emt 0:03:08]} c4 {[%emt 0:07:02]} 22. Qc2 {[%emt 0:01:05]} Bb4 {[%emt 0:03:24]} 23. g5 {[%emt 0:02:06]} Nd7 {[%emt 0:05:08]} 24. Rf1 {[%emt 0:05:02]} Nf8 {[%emt 0:01:02]} 25. h4 {[%emt 0:02:40]} Qd6 {[%emt 0:01:52]} 26. Rf3 {[%emt 0:02:57]} Bb7 {[%emt 0:02:05]} 27. Rg3 {[%emt 0:01:14]} Bxc3 {[%emt 0:05:11]} 28. bxc3 {[%emt 0:00:04]} Ng6 {[%emt 0:01:21]} 29. h5 {[%emt 0:02:25]} Nxe5 {[%emt 0:00:06]} 30. fxe5 {[%emt 0:03:09]} Qc7 {[%emt 0:01:31]} 31. Rf1 {[%emt 0:03:07]} Rf8 {[%emt 0:01:25]} 32. h6 {[%emt 0:04:47]} g6 {[%emt 0:00:41]} 33. Qf2 {[%emt 0:01:12]} Qe7 {[%emt 0:00:57]} 34. Rb1 {[%emt 0:00:48]} Qe6 {[%emt 0:01:01]} 35. Rf3 {[%emt 0:02:06]} Bc8 {[%emt 0:00:54]} 36. Bh3 {[%emt 0:04:50]} Qe7 {[%emt 0:00:10]} 37. Bxc8 {[%emt 0:00:23]} Rxc8 {[%emt 0:00:05]} 38. Rf6 {[%emt 0:00:25]} Rb8 {[%emt 0:01:08]} 39. Qf3 {[%emt 0:00:04]} Rfd8 {[%emt 0:00:37]} 40. Rf1 {[%emt 0:00:00]} b5 {[%emt 0:00:00]} 41. Qf4 {[%emt 0:09:11]} Rf8 {[%emt 0:02:07]} 42. Rxa6 {[%emt 0:06:12]} bxa4 {[%emt 0:00:15]} 43. Rxa4 {[%emt 0:00:37]} Qe6 {[%emt 0:03:39]} 44. Ra2 {[%emt 0:01:08]} Rb3 {[%emt 0:02:05]} 45. Rc2 {[%emt 0:01:00]} Rb6 {[%emt 0:00:37]} 46. Rcf2 {[%emt 0:03:35]} Qe7 {[%emt 0:00:25]} 47. Kh2 {[%emt 0:01:09]} Rb3 {[%emt 0:05:44]} 48. Qf6 {[%emt 0:02:04]} Qxf6 {[%emt 0:00:08]} 49. Rxf6 {[%emt 0:00:04]} Rxc3 {[%emt 0:00:07]} 50. e6 {[%emt 0:00:52]} Rxe3 {[%emt 0:00:08]} 51. exf7+ {[%emt 0:00:05]} Kh8 {[%emt 0:00:11]} 52. Rd6 {[%emt 0:01:11]} c3 {[%emt 0:00:40]} 53. Rd8 {[%emt 0:00:24]} 1-0

[Event "71st RUS-ch Higher League 2018"]
[Site "Yaroslavl"]
[Date "2018.06.28"]
[Round "3"]
[White "Tekeyev, Zaur"]
[Black "Moskalenko, Alexander"]
[Result "1/2-1/2"]
[ECO "B18"]
[WhiteElo "2407"]
[BlackElo "2558"]
[Annotator "ChessBase"]
[PlyCount "90"]
[EventDate "2018.06.26"]
[EventType "swiss"]
[EventCountry "RUS"]
[SourceTitle "playchess.com"]
[Source "ChessBase"]
[SourceQuality "1"]
[TimeControl "40/5400+30:1800+30"]

1. e4 {[%emt 0:01:17]} c6 {[%emt 0:08:31]} 2. d4 {[%emt 0:00:14]} d5 {[%emt 0:00:05]} 3. Nd2 {[%emt 0:00:39]} dxe4 {[%emt 0:00:06]} 4. Nxe4 {[%emt 0:00:04]} Bf5 {[%emt 0:00:04]} 5. Ng3 {[%emt 0:00:16]} Bg6 {[%emt 0:00:05]} 6. Nh3 {[%emt 0:00:24]} e6 {[%emt 0:04:07]} 7. Nf4 {[%emt 0:02:56]} Qh4 {[%emt 0:00:56]} 8. Nxg6 {[%emt 0:06:29]} hxg6 {[%emt 0:00:06]} 9. Qd3 {[%emt 0:00:05]} Nf6 {[%emt 0:14:21]} 10. Ne2 {[%emt 0:18:17]} Nbd7 {[%emt 0:04:29]} 11. g3 {[%emt 0:22:45]} Qh5 {[%emt 0:01:09]} 12. Nf4 {[%emt 0:00:56]} Qa5+ {[%emt 0:02:39]} 13. Bd2 {[%emt 0:00:53]} Bb4 {[%emt 0:00:39]} 14. c3 {[%emt 0:00:21]} Bd6 {[%emt 0:00:40]} 15. Bg2 {[%emt 0:02:02]} O-O-O {[%emt 0:06:33]} 16. Nh3 {[%emt 0:09:25]} Qf5 {[%emt 0:14:58]} 17. Qxf5 {[%emt 0:01:57]} gxf5 {[%emt 0:00:47]} 18. Ng5 {[%emt 0:00:22]} Rhf8 {[%emt 0:01:51]} 19. O-O-O {[%emt 0:08:04]} c5 {[%emt 0:11:10]} 20. Be3 {[%emt 0:05:05]} Ng4 {[%emt 0:00:33]} 21. d5 {[%emt 0:00:38]} e5 {[%emt 0:09:02]} 22. Bh3 {[%emt 0:02:28]} Nxe3 {[%emt 0:00:22]} 23. fxe3 {[%emt 0:00:02]} g6 {[%emt 0:00:09]} 24. e4 {[%emt 0:01:11]} Be7 {[%emt 0:01:01]} 25. Nf3 {[%emt 0:05:56]} Rh8 {[%emt 0:00:53]} 26. d6 {[%emt 0:02:20]} Bf8 {[%emt 0:00:53]} 27. Bg2 {[%emt 0:01:17]} fxe4 {[%emt 0:01:00]} 28. Nh4 {[%emt 0:02:03]} e3 {[%emt 0:09:00]} 29. Bd5 {[%emt 0:02:41]} Rh7 {[%emt 0:00:44]} 30. Rdf1 {[%emt 0:00:09]} f5 {[%emt 0:05:39]} 31. Nxg6 {[%emt 0:00:24]} f4 {[%emt 0:00:53]} 32. gxf4 {[%emt 0:00:48]} exf4 {[%emt 0:00:33]} 33. Nxf4 {[%emt 0:03:20]} Bxd6 {[%emt 0:00:10]} 34. h4 {[%emt 0:00:36]} Re8 {[%emt 0:02:09]} 35. Ne2 {[%emt 0:00:15]} Ne5 {[%emt 0:00:33]} 36. Be4 {[%emt 0:00:02]} Rh6 {[%emt 0:00:14]} 37. Rh3 {[%emt 0:00:32]} Reh8 {[%emt 0:00:46]} 38. Rfh1 {[%emt 0:00:37]} Kb8 {[%emt 0:00:26]} 39. Rxe3 {[%emt 0:00:31]} Rxh4 {[%emt 0:00:31]} 40. Rxh4 {[%emt 0:00:00]} Rxh4 {[%emt 0:00:00]} 41. Bd5 {[%emt 0:05:17]} Rh2 {[%emt 0:01:04]} 42. c4 {[%emt 0:05:28]} Nd3+ {[%emt 0:03:52]} 43. Rxd3 {[%emt 0:07:54]} Rxe2 {[%emt 0:00:29]} 44. a4 {[%emt 0:01:01]} Bf4+ {[%emt 0:05:32]} 45. Kb1 {[%emt 0:00:10]} Be5 {[%emt 0:00:36]} 1/2-1/2

[Event "71st RUS-ch Higher League 2018"]
[Site "Yaroslavl"]
[Date "2018.06.28"]
[Round "3"]
[White "Rodin, Dmitrij"]
[Black "Lomasov, Semen"]
[Result "0-1"]
[ECO "C80"]
[WhiteElo "2402"]
[BlackElo "2549"]
[Annotator "ChessBase"]
[PlyCount "82"]
[EventDate "2018.06.26"]
[EventType "swiss"]
[EventCountry "RUS"]
[SourceTitle "playchess.com"]
[Source "ChessBase"]
[SourceQuality "1"]
[TimeControl "40/5400+30:1800+30"]

1. e4 {[%emt 0:00:00]} e5 {[%emt 0:00:00]} 2. Nf3 {[%emt 0:00:00]} Nc6 {[%emt 0:00:00]} 3. Bb5 {[%emt 0:00:26]} a6 {[%emt 0:00:00]} 4. Ba4 {[%emt 0:00:06]} Nf6 {[%emt 0:00:00]} 5. O-O {[%emt 0:01:01]} Nxe4 {[%emt 0:00:08]} 6. d4 {[%emt 0:00:37]} b5 {[%emt 0:00:10]} 7. Bb3 {[%emt 0:00:02]} d5 {[%emt 0:00:07]} 8. dxe5 {[%emt 0:00:08]} Be6 {[%emt 0:00:06]} 9. Nbd2 {[%emt 0:04:33]} Be7 {[%emt 0:00:33]} 10. c3 {[%emt 0:00:59]} O-O {[%emt 0:00:10]} 11. Bc2 {[%emt 0:00:51]} f5 {[%emt 0:00:08]} 12. Nb3 {[%emt 0:00:48]} Qd7 {[%emt 0:00:13]} 13. Nbd4 {[%emt 0:03:30]} Nd8 {[%emt 0:00:13]} 14. a4 {[%emt 0:07:25]} b4 {[%emt 0:04:27]} 15. Bb3 {[%emt 0:20:18]} c6 {[%emt 0:00:15]} 16. cxb4 {[%emt 0:13:25]} Bxb4 {[%emt 0:00:07]} 17. Bg5 {[%emt 0:02:34]} Bc5 {[%emt 0:00:41]} 18. Rc1 {[%emt 0:06:02]} Bxd4 {[%emt 0:00:57]} 19. Qxd4 {[%emt 0:01:16]} Rb8 {[%emt 0:00:27]} 20. Bc2 {[%emt 0:04:34]} c5 {[%emt 0:01:31]} 21. Qd3 {[%emt 0:02:28]} Nc6 {[%emt 0:07:19]} 22. Qa3 {[%emt 0:05:59]} Nb4 {[%emt 0:01:06]} 23. Bf4 {[%emt 0:10:35]} Nxc2 {[%emt 0:30:55]} 24. Rxc2 {[%emt 0:00:02]} d4 {[%emt 0:00:16]} 25. Nd2 {[%emt 0:04:33]} Nxd2 {[%emt 0:04:48]} 26. Rxd2 {[%emt 0:01:23]} Rfc8 {[%emt 0:00:33]} 27. a5 {[%emt 0:04:14]} Rb3 {[%emt 0:00:48]} 28. Qa1 {[%emt 0:00:26]} h6 {[%emt 0:00:45]} 29. Rc2 {[%emt 0:03:34]} Qb5 {[%emt 0:06:11]} 30. h4 {[%emt 0:02:08]} d3 {[%emt 0:06:30]} 31. Rd2 {[%emt 0:01:17]} Rb8 {[%emt 0:00:05]} 32. Be3 {[%emt 0:00:00]} Qb4 {[%emt 0:03:43]} 33. f4 {[%emt 0:00:37]} Rb5 {[%emt 0:01:24]} 34. Qc1 {[%emt 0:00:32]} Rxb2 {[%emt 0:02:34]} 35. Rxd3 {[%emt 0:00:28]} Qe4 {[%emt 0:00:22]} 36. Rd8+ {[%emt 0:00:14]} Kh7 {[%emt 0:00:05]} 37. Bf2 {[%emt 0:00:54]} Rb1 {[%emt 0:02:31]} 38. Qe3 {[%emt 0:00:21]} Rxf1+ {[%emt 0:00:23]} 39. Kxf1 {[%emt 0:00:01]} Rb1+ {[%emt 0:00:10]} 40. Ke2 {[%emt 0:00:00]} Bc4+ {[%emt 0:00:00]} 41. Kd2 {[%emt 0:01:58]} Rb2+ {[%emt 0:00:30]} 0-1

[Event "71st RUS-ch Higher League 2018"]
[Site "Yaroslavl"]
[Date "2018.06.28"]
[Round "3"]
[White "Zakaryan, David"]
[Black "Gaifullin, Artur"]
[Result "0-1"]
[ECO "B13"]
[WhiteElo "2387"]
[BlackElo "2448"]
[Annotator "ChessBase"]
[PlyCount "114"]
[EventDate "2018.06.26"]
[EventType "swiss"]
[EventCountry "RUS"]
[SourceTitle "playchess.com"]
[Source "ChessBase"]
[SourceQuality "1"]
[TimeControl "40/5400+30:1800+30"]

1. e4 {[%emt 0:00:38]} c6 {[%emt 0:00:00]} 2. d4 {[%emt 0:03:37]} d5 {[%emt 0:00:00]} 3. exd5 {[%emt 0:09:25]} cxd5 {[%emt 0:00:00]} 4. c3 {[%emt 0:00:12]} Nc6 {[%emt 0:00:00]} 5. Bf4 {[%emt 0:00:28]} Bf5 {[%emt 0:00:47]} 6. Qb3 {[%emt 0:01:27]} Qd7 {[%emt 0:02:30]} 7. Nf3 {[%emt 0:00:17]} f6 {[%emt 0:00:48]} 8. Nbd2 {[%emt 0:01:23]} e6 {[%emt 0:02:35]} 9. h4 {[%emt 0:06:10]} h5 {[%emt 0:09:06]} 10. g3 {[%emt 0:04:32]} Nge7 {[%emt 0:03:03]} 11. a4 {[%emt 0:10:20]} Ng6 {[%emt 0:04:10]} 12. Be3 {[%emt 0:00:01]} Bd6 {[%emt 0:00:14]} 13. Bg2 {[%emt 0:02:29]} O-O {[%emt 0:06:42]} 14. O-O {[%emt 0:00:35]} Rac8 {[%emt 0:00:49]} 15. Rfe1 {[%emt 0:00:34]} Nge7 {[%emt 0:01:59]} 16. Nh2 {[%emt 0:14:46]} a6 {[%emt 0:05:28]} 17. Qd1 {[%emt 0:00:44]} g6 {[%emt 0:00:08]} 18. Nb3 {[%emt 0:00:50]} Qc7 {[%emt 0:11:21]} 19. Qd2 {[%emt 0:08:33]} Qb6 {[%emt 0:10:49]} 20. Nc5 {[%emt 0:03:23]} Bxc5 {[%emt 0:00:42]} 21. dxc5 {[%emt 0:00:02]} Qd8 {[%emt 0:01:19]} 22. Rad1 {[%emt 0:01:11]} Ne5 {[%emt 0:02:03]} 23. Qe2 {[%emt 0:04:02]} Qe8 {[%emt 0:10:32]} 24. b3 {[%emt 0:05:57]} Qf7 {[%emt 0:00:15]} 25. f3 {[%emt 0:00:58]} b6 {[%emt 0:11:14]} 26. cxb6 {[%emt 0:05:02]} Rxc3 {[%emt 0:00:16]} 27. Rc1 {[%emt 0:08:36]} Rxb3 {[%emt 0:04:38]} 28. Rc7 {[%emt 0:00:02]} Nd3 {[%emt 0:01:09]} 29. Rd1 {[%emt 0:03:02]} e5 {[%emt 0:00:36]} 30. g4 {[%emt 0:00:18]} hxg4 {[%emt 0:00:06]} 31. fxg4 {[%emt 0:00:02]} Be4 {[%emt 0:00:00]} 32. Bxe4 {[%emt 0:00:24]} dxe4 {[%emt 0:00:02]} 33. Bh6 {[%emt 0:00:51]} Qe6 {[%emt 0:01:24]} 34. a5 {[%emt 0:01:56]} Nf4 {[%emt 0:10:43]} 35. Qxe4 {[%emt 0:00:42]} Rg3+ {[%emt 0:00:24]} 36. Kf1 {[%emt 0:02:48]} f5 {[%emt 0:00:25]} 37. Rxe7 {[%emt 0:01:41]} Qxe7 {[%emt 0:00:24]} 38. Bxf8 {[%emt 0:00:16]} Qf7 {[%emt 0:01:14]} 39. gxf5 {[%emt 0:00:31]} Qb3 {[%emt 0:00:50]} 40. Rb1 {[%emt 0:00:00]} Qa2 {[%emt 0:00:00]} 41. fxg6 {[%emt 0:14:53]} Rg1+ {[%emt 0:01:34]} 42. Kxg1 {[%emt 0:00:46]} Nh3+ {[%emt 0:00:05]} 43. Kh1 {[%emt 0:00:32]} Nf2+ {[%emt 0:00:05]} 44. Kg1 {[%emt 0:00:03]} Nxe4 {[%emt 0:00:06]} 45. Rf1 {[%emt 0:00:11]} Qxa5 {[%emt 0:03:06]} 46. Ng4 {[%emt 0:06:05]} Qxb6+ {[%emt 0:01:58]} 47. Kh2 {[%emt 0:00:19]} Qxg6 {[%emt 0:10:27]} 48. Nh6+ {[%emt 0:00:31]} Kh8 {[%emt 0:00:11]} 49. Rg1 {[%emt 0:00:14]} Qe8 {[%emt 0:00:14]} 50. Rg8+ {[%emt 0:07:02]} Kh7 {[%emt 0:00:01]} 51. Bg7 {[%emt 0:01:02]} Qh5 {[%emt 0:01:22]} 52. Bf8 {[%emt 0:00:34]} Qxh4+ {[%emt 0:02:05]} 53. Kg2 {[%emt 0:00:22]} Ng5 {[%emt 0:02:49]} 54. Bg7 {[%emt 0:02:36]} Qh3+ {[%emt 0:00:23]} 55. Kf2 {[%emt 0:00:07]} Qf3+ {[%emt 0:00:08]} 56. Ke1 {[%emt 0:00:12]} Ne4 {[%emt 0:00:23]} 57. Rf8 {[%emt 0:00:13]} Qc3+ {[%emt 0:00:17]} 0-1

[Event "71st RUS-ch Higher League 2018"]
[Site "Yaroslavl"]
[Date "2018.06.28"]
[Round "3"]
[White "Bykov, Oleg"]
[Black "Usmanov, Vasily"]
[Result "1/2-1/2"]
[ECO "E11"]
[WhiteElo "2375"]
[BlackElo "2477"]
[Annotator "ChessBase"]
[PlyCount "80"]
[EventDate "2018.06.26"]
[EventType "swiss"]
[EventCountry "RUS"]
[SourceTitle "playchess.com"]
[Source "ChessBase"]
[SourceQuality "1"]
[TimeControl "40/5400+30:1800+30"]

1. d4 {[%emt 0:00:00]} Nf6 {[%emt 0:00:00]} 2. c4 {[%emt 0:00:00]} e6 {[%emt 0:00:00]} 3. Nf3 {[%emt 0:00:00]} Bb4+ {[%emt 0:00:00]} 4. Nbd2 {[%emt 0:00:00]} d5 {[%emt 0:02:22]} 5. Qa4+ {[%emt 0:00:20]} Nc6 {[%emt 0:00:19]} 6. a3 {[%emt 0:00:34]} Bd6 {[%emt 0:01:02]} 7. b4 {[%emt 0:18:33]} Bd7 {[%emt 0:03:52]} 8. Qc2 {[%emt 0:00:41]} O-O {[%emt 0:03:43]} 9. c5 {[%emt 0:05:14]} Be7 {[%emt 0:01:33]} 10. Bb2 {[%emt 0:07:26]} b5 {[%emt 0:02:45]} 11. cxb6 {[%emt 0:06:34]} cxb6 {[%emt 0:08:12]} 12. e3 {[%emt 0:00:11]} b5 {[%emt 0:00:15]} 13. Ne5 {[%emt 0:06:34]} Qb6 {[%emt 0:14:44]} 14. Nxc6 {[%emt 0:03:05]} Bxc6 {[%emt 0:00:22]} 15. Nb3 {[%emt 0:00:19]} Ne4 {[%emt 0:11:34]} 16. Bd3 {[%emt 0:01:09]} h6 {[%emt 0:00:16]} 17. O-O {[%emt 0:01:12]} Nd6 {[%emt 0:00:13]} 18. Nc5 {[%emt 0:00:53]} Nc4 {[%emt 0:00:22]} 19. Bc3 {[%emt 0:01:31]} a5 {[%emt 0:03:30]} 20. bxa5 {[%emt 0:12:44]} Nxa5 {[%emt 0:01:33]} 21. Bb4 {[%emt 0:01:24]} Rfe8 {[%emt 0:02:17]} 22. Rfb1 {[%emt 0:01:42]} Nc4 {[%emt 0:05:39]} 23. a4 {[%emt 0:04:12]} Qc7 {[%emt 0:01:06]} 24. axb5 {[%emt 0:02:17]} Rxa1 {[%emt 0:00:59]} 25. Rxa1 {[%emt 0:00:06]} Bxb5 {[%emt 0:00:03]} 26. Qc3 {[%emt 0:08:43]} Rc8 {[%emt 0:11:46]} 27. h3 {[%emt 0:04:39]} Nd6 {[%emt 0:02:01]} 28. Bxb5 {[%emt 0:00:31]} Nxb5 {[%emt 0:00:04]} 29. Qd3 {[%emt 0:01:17]} Nd6 {[%emt 0:00:13]} 30. Qa6 {[%emt 0:05:10]} Bf8 {[%emt 0:07:55]} 31. Nd3 {[%emt 0:00:50]} Qc4 {[%emt 0:02:51]} 32. Bxd6 {[%emt 0:01:02]} Bxd6 {[%emt 0:00:04]} 33. Qxd6 {[%emt 0:00:36]} Qxd3 {[%emt 0:00:06]} 34. Qd7 {[%emt 0:00:28]} Rb8 {[%emt 0:00:22]} 35. Qd6 {[%emt 0:00:37]} Rb1+ {[%emt 0:00:21]} 36. Rxb1 {[%emt 0:00:05]} Qxb1+ {[%emt 0:00:03]} 37. Kh2 {[%emt 0:00:04]} Qf5 {[%emt 0:00:12]} 38. Kg1 {[%emt 0:00:06]} Qb1+ {[%emt 0:00:04]} 39. Kh2 {[%emt 0:00:03]} Qf5 {[%emt 0:00:02]} 40. Kg1 {[%emt 0:00:00]} Qb1+ {[%emt 0:00:00]} 1/2-1/2

[Event "71st RUS-ch Higher League 2018"]
[Site "Yaroslavl"]
[Date "2018.06.28"]
[Round "3"]
[White "Bykov, Egor"]
[Black "Kokarev, Dmitry"]
[Result "1/2-1/2"]
[ECO "E70"]
[WhiteElo "2373"]
[BlackElo "2603"]
[Annotator "ChessBase"]
[PlyCount "102"]
[EventDate "2018.06.26"]
[EventType "swiss"]
[EventCountry "RUS"]
[SourceTitle "playchess.com"]
[Source "ChessBase"]
[SourceQuality "1"]
[TimeControl "40/5400+30:1800+30"]

1. d4 {[%emt 0:00:00]} g6 {[%emt 0:00:00]} 2. c4 {[%emt 0:00:00]} Nf6 {[%emt 0:00:00]} 3. Nc3 {[%emt 0:00:06]} Bg7 {[%emt 0:00:01]} 4. e4 {[%emt 0:00:15]} O-O {[%emt 0:00:06]} 5. Nf3 {[%emt 0:00:08]} c6 {[%emt 0:00:08]} 6. e5 {[%emt 0:01:50]} Ne8 {[%emt 0:00:08]} 7. Be2 {[%emt 0:07:16]} d6 {[%emt 0:00:14]} 8. exd6 {[%emt 0:01:14]} Nxd6 {[%emt 0:00:07]} 9. Bf4 {[%emt 0:02:40]} Be6 {[%emt 0:21:17]} 10. d5 {[%emt 0:12:54]} cxd5 {[%emt 0:00:14]} 11. cxd5 {[%emt 0:00:24]} Bg4 {[%emt 0:00:08]} 12. O-O {[%emt 0:01:36]} Qb6 {[%emt 0:04:20]} 13. Qd2 {[%emt 0:14:46]} Na6 {[%emt 0:06:06]} 14. h3 {[%emt 0:08:48]} Bxf3 {[%emt 0:00:21]} 15. Bxf3 {[%emt 0:00:04]} Rac8 {[%emt 0:02:00]} 16. Rac1 {[%emt 0:02:16]} Rfe8 {[%emt 0:16:04]} 17. b3 {[%emt 0:06:19]} Qb4 {[%emt 0:05:22]} 18. Nb1 {[%emt 0:01:54]} Qxd2 {[%emt 0:05:23]} 19. Nxd2 {[%emt 0:00:18]} Nb4 {[%emt 0:00:48]} 20. Nc4 {[%emt 0:12:27]} Nxc4 {[%emt 0:08:16]} 21. Rxc4 {[%emt 0:00:09]} Rxc4 {[%emt 0:00:31]} 22. bxc4 {[%emt 0:00:01]} b6 {[%emt 0:02:12]} 23. Rb1 {[%emt 0:04:39]} Nd3 {[%emt 0:04:57]} 24. Be3 {[%emt 0:00:13]} Rc8 {[%emt 0:00:33]} 25. Be2 {[%emt 0:01:01]} Nc5 {[%emt 0:02:25]} 26. g4 {[%emt 0:02:50]} Be5 {[%emt 0:02:47]} 27. Kg2 {[%emt 0:05:09]} Bd6 {[%emt 0:02:00]} 28. Rc1 {[%emt 0:01:46]} Rc7 {[%emt 0:03:16]} 29. h4 {[%emt 0:01:32]} e5 {[%emt 0:01:02]} 30. Bxc5 {[%emt 0:05:48]} Rxc5 {[%emt 0:00:22]} 31. a4 {[%emt 0:00:14]} e4 {[%emt 0:02:06]} 32. f3 {[%emt 0:02:07]} exf3+ {[%emt 0:00:19]} 33. Kxf3 {[%emt 0:00:11]} Rc7 {[%emt 0:00:55]} 34. Bd3 {[%emt 0:00:07]} Re7 {[%emt 0:01:06]} 35. Be4 {[%emt 0:00:32]} Re5 {[%emt 0:02:49]} 36. Rc2 {[%emt 0:00:45]} Kg7 {[%emt 0:03:35]} 37. Re2 {[%emt 0:01:18]} h5 {[%emt 0:00:13]} 38. g5 {[%emt 0:02:10]} Re8 {[%emt 0:00:27]} 39. Bd3 {[%emt 0:01:08]} Rc8 {[%emt 0:00:14]} 40. Ra2 {[%emt 0:00:00]} Rf8 {[%emt 0:00:00]} 41. Kg2 {[%emt 0:06:09]} Bb4 {[%emt 0:03:50]} 42. Re2 {[%emt 0:00:35]} Rd8 {[%emt 0:00:24]} 43. Kf2 {[%emt 0:02:34]} a6 {[%emt 0:01:17]} 44. Re4 {[%emt 0:00:46]} Bc5+ {[%emt 0:02:13]} 45. Kf3 {[%emt 0:00:17]} Kf8 {[%emt 0:00:58]} 46. Bf1 {[%emt 0:01:07]} Rc8 {[%emt 0:00:25]} 47. Bh3 {[%emt 0:00:48]} Rc7 {[%emt 0:00:33]} 48. Kg2 {[%emt 0:01:01]} Be7 {[%emt 0:01:42]} 49. Kf3 {[%emt 0:00:29]} Bd6 {[%emt 0:00:06]} 50. Kf2 {[%emt 0:03:41]} Kg7 {[%emt 0:04:52]} 51. Kf3 {[%emt 0:02:04]} Kf8 {[%emt 0:00:53]} 1/2-1/2

[Event "71st RUS-ch Higher League 2018"]
[Site "Yaroslavl"]
[Date "2018.06.29"]
[Round "4"]
[White "Najer, Evgeniy"]
[Black "Potkin, Vladimir"]
[Result "1/2-1/2"]
[ECO "D12"]
[WhiteElo "2668"]
[BlackElo "2592"]
[Annotator "ChessBase"]
[PlyCount "43"]
[EventDate "2018.06.26"]
[EventType "swiss"]
[EventCountry "RUS"]
[SourceTitle "playchess.com"]
[Source "ChessBase"]
[SourceQuality "1"]
[TimeControl "40/5400+30:1800+30"]

1. d4 {[%emt 0:00:00]} d5 {[%emt 0:00:09]} 2. c4 {[%emt 0:00:00]} c6 {[%emt 0:00:07]} 3. Nf3 {[%emt 0:00:00]} Nf6 {[%emt 0:00:10]} 4. e3 {[%emt 0:00:12]} Bf5 {[%emt 0:01:05]} 5. Nc3 {[%emt 0:01:36]} a6 {[%emt 0:00:24]} 6. Ne5 {[%emt 0:01:42]} Nbd7 {[%emt 0:00:39]} 7. Qb3 {[%emt 0:02:07]} Qc7 {[%emt 0:01:03]} 8. Nxd7 {[%emt 0:00:16]} Qxd7 {[%emt 0:00:17]} 9. Na4 {[%emt 0:00:33]} Qc7 {[%emt 0:01:18]} 10. Nb6 {[%emt 0:01:31]} Rd8 {[%emt 0:00:40]} 11. cxd5 {[%emt 0:00:38]} Nxd5 {[%emt 0:01:31]} 12. Nxd5 {[%emt 0:01:00]} cxd5 {[%emt 0:00:08]} 13. Bd2 {[%emt 0:00:10]} Rd6 {[%emt 0:01:37]} 14. Rc1 {[%emt 0:00:47]} Rc6 {[%emt 0:00:07]} 15. Rxc6 {[%emt 0:00:06]} Qxc6 {[%emt 0:00:05]} 16. Bd3 {[%emt 0:00:21]} Bxd3 {[%emt 0:00:09]} 17. Qxd3 {[%emt 0:00:07]} Qb5 {[%emt 0:00:40]} 18. Qc2 {[%emt 0:00:34]} Qc6 {[%emt 0:00:23]} 19. Qd3 {[%emt 0:00:08]} Qb5 {[%emt 0:00:07]} 20. Qc2 {[%emt 0:00:23]} Qc6 {[%emt 0:00:07]} 21. Qd3 {[%emt 0:00:33]} Qb5 {[%emt 0:00:32]} 22. Qc2 1/2-1/2

[Event "71st RUS-ch Higher League 2018"]
[Site "Yaroslavl"]
[Date "2018.06.29"]
[Round "4"]
[White "Motylev, Alexander"]
[Black "Oparin, Grigoriy"]
[Result "1/2-1/2"]
[ECO "C84"]
[WhiteElo "2659"]
[BlackElo "2587"]
[Annotator "ChessBase"]
[PlyCount "102"]
[EventDate "2018.06.26"]
[EventType "swiss"]
[EventCountry "RUS"]
[SourceTitle "playchess.com"]
[Source "ChessBase"]
[SourceQuality "1"]
[TimeControl "40/5400+30:1800+30"]

1. e4 {[%emt 0:00:00]} e5 {[%emt 0:00:04]} 2. Nf3 {[%emt 0:00:00]} Nc6 {[%emt 0:00:03]} 3. Bb5 {[%emt 0:00:00]} a6 {[%emt 0:00:05]} 4. Ba4 {[%emt 0:00:00]} Nf6 {[%emt 0:00:04]} 5. O-O {[%emt 0:00:06]} Be7 {[%emt 0:00:04]} 6. d3 {[%emt 0:00:17]} d6 {[%emt 0:04:33]} 7. c3 {[%emt 0:00:40]} O-O {[%emt 0:00:27]} 8. Re1 {[%emt 0:00:44]} Re8 {[%emt 0:02:41]} 9. Nbd2 {[%emt 0:01:15]} Bf8 {[%emt 0:02:41]} 10. Nf1 {[%emt 0:01:27]} b5 {[%emt 0:16:56]} 11. Bb3 {[%emt 0:02:24]} Na5 {[%emt 0:01:48]} 12. Bc2 {[%emt 0:01:13]} c5 {[%emt 0:00:05]} 13. Bg5 {[%emt 0:03:32]} h6 {[%emt 0:06:16]} 14. Bh4 {[%emt 0:01:44]} Be7 {[%emt 0:13:26]} 15. Ne3 {[%emt 0:04:47]} Be6 {[%emt 0:00:45]} 16. d4 {[%emt 0:03:28]} Ng4 {[%emt 0:10:45]} 17. Bxe7 {[%emt 0:13:54]} Rxe7 {[%emt 0:00:05]} 18. dxc5 {[%emt 0:09:59]} Nxe3 {[%emt 0:11:03]} 19. fxe3 {[%emt 0:09:33]} dxc5 {[%emt 0:00:13]} 20. Nxe5 {[%emt 0:01:14]} Qc7 {[%emt 0:01:39]} 21. Nd3 {[%emt 0:08:46]} Rd8 {[%emt 0:06:37]} 22. Qh5 {[%emt 0:03:44]} Bc4 {[%emt 0:00:13]} 23. Nf4 {[%emt 0:01:43]} Rd2 {[%emt 0:00:52]} 24. Rec1 {[%emt 0:05:43]} Be6 {[%emt 0:08:17]} 25. b3 {[%emt 0:04:07]} c4 {[%emt 0:00:04]} 26. b4 {[%emt 0:04:17]} Nc6 {[%emt 0:00:22]} 27. a4 {[%emt 0:01:30]} Qb6 {[%emt 0:06:37]} 28. Qc5 {[%emt 0:08:51]} Qxc5 {[%emt 0:00:04]} 29. bxc5 {[%emt 0:00:03]} b4 {[%emt 0:03:52]} 30. cxb4 {[%emt 0:01:17]} Nxb4 {[%emt 0:00:03]} 31. Bd1 {[%emt 0:01:09]} Na2 {[%emt 0:01:31]} 32. Rxa2 {[%emt 0:05:47]} Rxa2 {[%emt 0:00:05]} 33. c6 {[%emt 0:01:00]} Re8 {[%emt 0:03:37]} 34. Nd5 {[%emt 0:01:38]} Rb8 {[%emt 0:00:50]} 35. c7 {[%emt 0:00:56]} Rbb2 {[%emt 0:00:33]} 36. Nf4 {[%emt 0:00:39]} Bc8 {[%emt 0:00:31]} 37. Bf3 {[%emt 0:00:20]} g5 {[%emt 0:00:34]} 38. Nd5 {[%emt 0:00:13]} g4 {[%emt 0:00:25]} 39. Bxg4 {[%emt 0:00:46]} Rxg2+ {[%emt 0:00:08]} 40. Kh1 {[%emt 0:00:00]} Rxh2+ {[%emt 0:00:11]} 41. Kg1 {[%emt 0:00:45]} Rhg2+ {[%emt 0:21:23]} 42. Kh1 {[%emt 0:01:46]} Bb7 {[%emt 0:05:48]} 43. Bc8 {[%emt 0:22:38]} Bxc8 {[%emt 0:01:08]} 44. Ne7+ {[%emt 0:00:44]} Kh7 {[%emt 0:00:03]} 45. Nxc8 {[%emt 0:00:05]} Rh2+ {[%emt 0:02:58]} 46. Kg1 {[%emt 0:00:15]} Rag2+ {[%emt 0:00:02]} 47. Kf1 {[%emt 0:00:06]} Rb2 {[%emt 0:00:24]} 48. Kg1 {[%emt 0:00:18]} Rhg2+ {[%emt 0:01:31]} 49. Kh1 {[%emt 0:00:08]} Rh2+ {[%emt 0:01:22]} 50. Kg1 {[%emt 0:00:16]} Rbg2+ {[%emt 0:00:06]} 51. Kf1 {[%emt 0:00:27]} Rd2 {[%emt 0:00:35]} 1/2-1/2